Cogmind - Beta 14 @@@ ROGUE MODE // 2025.03.06 @ 21:53:13 Player: Zaros426 Result: Destroyed by G-47 Trooper with Particle Gun Performance ------------- Evolutions (0) 0 Regions Visited (2) 400 Robots Destroyed (37) 185 Value Destroyed (747) 747 Prototype IDs (4) 80 Alien Tech Used (0) 0 Bonus (25) 25 TOTAL SCORE: 1437 Bonus ------- Follower Combat Kills 25 Cogmind --------- Core Integrity 0/250 Matter 300/300 Energy 146/150 System Corruption 0% Temperature Cool (11) Movement Treading (240) Ox1 Location -10/Mines Parts ------- > --- POWER (1) -------- Light Angular Momentum Engine > --- PROPULSION (2) --- Improved Treads Improved Treads > --- UTILITY (2) ------ Improved Heat Sink High-capacity Storage Unit > --- WEAPON (2) ------- Beam Cannon Assault Rifle > --- INVENTORY (20) --- Ion Engine Improved Treads Improved Treads Large Storage Unit High-capacity Battery (250) Medium Matter Pod (100) Visual Processing Unit Improved Terrain Scanner Seismic Detector ECM Suite Particle Gun Light Cannon Grenade Launcher Datajack Heavy Hammer Heavy Explosive Trap Heavy Explosive Trap Peak State ------------ > --- POWER ------------ Light Angular Momentum Engine > --- PROPULSION ------- Improved Treads Improved Treads > --- UTILITY ---------- Improved Heat Sink Large Storage Unit > --- WEAPON ----------- Beam Cannon Assault Rifle > --- INVENTORY -------- Ion Engine Improved Treads Improved Treads High-capacity Storage Unit High-capacity Battery Medium Matter Pod Visual Processing Unit Improved Terrain Scanner Seismic Detector ECM Suite Light Cannon Grenade Launcher Datajack Heavy Hammer [Rating: 17] Favorites ----------- Power Ion Engine Engine Ion Engine Propulsion Light Treads Treads Light Treads Leg Aluminum Leg Wheel Wheel Utility Large Storage Unit Device Improved Heat Sink Storage Large Storage Unit Hackware Hacking Suite Weapon Assault Rifle Energy Gun Small Laser Energy Cannon Beam Cannon Ballistic Gun Assault Rifle Launcher Grenade Launcher Build | -11 -10 -10 ------- Run | Yrd Mat Min Slots Evolved . | . . . Power . | . . . Propulsion . | . . . Utility . | . . . Weapon . | . . . Parts Attached 32 | 6 23 3 Power 5 | 1 3 1 Engine 5 | 1 3 1 Core . | . . . Reactor . | . . . Propulsion 10 | 2 8 . Treads 7 | 2 5 . Leg 1 | . 1 . Wheel 2 | . 2 . Hover . | . . . Flight . | . . . Utility 7 | 1 4 2 Device 2 | . 1 1 Storage 4 | 1 2 1 Processor . | . . . Hackware 1 | . 1 . Protection . | . . . Artifact . | . . . Weapon 10 | 2 8 . Energy Gun 4 | 1 3 . Energy Cannon 2 | . 2 . Ballistic Gun 3 | 1 2 . Ballistic Cannon . | . . . Launcher 1 | . 1 . Special Weapon . | . . . Impact Weapon . | . . . Slashing Weapon . | . . . Piercing Weapon . | . . . Special Melee Weapon . | . . . Unidentified Prototypes . | . . . Parts Lost 5 | . 5 . Power 1 | . 1 . Propulsion 1 | . 1 . Utility 1 | . 1 . Weapon 2 | . 2 . Highest Loss Streak 2 | . 2 . To Critical Strikes . | . . . Average Slot Usage (%) 97 | . 96 100 Engine 13 | . 13 14 Treads 24 | . 22 28 Wheel 2 | . 4 . Device 6 | . 1 14 Storage 14 | . 14 14 Hackware 7 | . 11 . Energy Gun 8 | . 13 . Energy Cannon 6 | . 1 14 Ballistic Gun 12 | . 11 14 Peak Build Rating 17 | 6 13 17 Average Rating 11 | 5 10 16 On Entrance 6 | . 6 13 Naked Turns . | . . . Heaviest Build 55 | 14 31 55 Greatest Support 46 | 40 46 46 Greatest Overweight (x) 2 | . 2 1 Average Overweight (x) . | . . . Largest Inventory Capacity 20 | 8 15 20 Average Capacity 14 | 7 13 19 Most Carried 18 | 4 15 18 Average Carried 12 | 2 11 17 Final Capacity 20 | 8 15 20 Final Carried 17 | 4 14 17 Class Distribution -------------------- 81% | Mutant 18% | Scavenger-Mutant Dominant Class ---------------- Mutant | -10/Materials Mutant | -10/Mines Resources | -11 -10 -10 ----------- Run | Yrd Mat Min Matter Collected 944 | 308 533 103 Remotely . | . . . Salvage Created 1242 | 272 784 186 Parts 74 | 21 43 10 Haulers Intercepted 2 | . 2 . Recyclers Shooed 2 | 1 1 . Parts Field Recycled . | . . . Retrieved Matter . | . . . Parts Self-Destructed . | . . . Prevented . | . . . Kills | -11 -10 -10 ------- Run | Yrd Mat Min Combat Hostiles Destroyed 17 | . 12 5 Guns 13 | . 10 3 Cannons 2 | . . 2 AOE 2 | . 2 . Classes Destroyed 9 | 3 5 1 Worker 5 | 2 3 . Builder 1 | . 1 . Tunneler 6 | 6 . . Hauler 2 | . 2 . Recycler 2 | 1 1 . Operator 1 | . 1 . Watcher 3 | . 3 . Swarmer 2 | . . 2 Grunt 15 | . 12 3 Best Kill Streak 3 | 3 3 3 Combat Bots Only 3 | . 3 3 Max Kills in Single Turn 2 | 2 2 1 Gunslinging . | . . . Exploded 2 | . 2 . Melee . | . . . Uniques/NPCs Destroyed . | . . . Combat | -11 -10 -10 -------- Run | Yrd Mat Min Hostile Shots Fired 116 | . 96 20 Missed 23 | . 16 7 Damage Taken 1403 | . 1224 179 Core 252 | . 225 27 Absorbed by Shields . | . . . Regen/Repaired (Parts) 102 | . 102 . Core Remaining (%) 100 | 100 . . Volleys Fired 125 | 16 97 12 Largest 2 | 2 2 2 Hottest 90 | 70 90 80 Shots Fired 236 | 31 181 24 Gun 221 | 31 178 12 Cannon 13 | . 1 12 Launcher 2 | . 2 . Special . | . . . Kinetic 108 | 16 80 12 Thermal 126 | 15 99 12 Explosive 2 | . 2 . Electromagnetic . | . . . Robot Hit Streak 9 | 6 9 5 Robot Miss Streak 4 | 3 4 2 Penetration Max . | . . . Secondary Targets . | . . . Shots Hit Robots 151 | 18 118 15 Core Hits 61 | 10 42 9 Critical Kills . | . . . Critical Parts Destroyed . | . . . Critical Strikes 1 | . 1 . Burn 1 | . 1 . Melee Attacks . | . . . Impact . | . . . Slashing . | . . . Piercing . | . . . Sneak Attacks . | . . . Combat Hostiles . | . . . Follow-up Attacks . | . . . Damage Inflicted 2112 | 238 1656 218 Guns 1779 | 238 1412 129 Cannons 89 | . . 89 Explosions 244 | . 244 . Melee . | . . . Ramming . | . . . Kinetic 931 | 124 678 129 Thermal 937 | 114 734 89 Explosive 244 | . 244 . Electromagnetic . | . . . Impact . | . . . Slashing . | . . . Piercing . | . . . Highest Corruption . | . . . Average Corruption . | . . . Corruption Purged . | . . . Corruption Blocked . | . . . Overload Shots . | . . . Overflow Damage 3 | . 3 . Projectiles . | . . . Explosions 3 | . 3 . Melee . | . . . Knockbacks . | . . . Impact . | . . . Kinetic . | . . . Secondary . | . . . Self-Inflicted Damage 5 | . 5 . Shots 1 | . 1 . Rammed . | . . . Targets Rammed . | . . . Kicked . | . . . Crushed . | . . . Highest Temperature 258 | 45 258 3 Average Temperature 58 | 17 71 1 Received Heat Transfer 744 | . 639 105 Siege Activations . | . . . Robots Corrupted . | . . . Combat Hostiles . | . . . Parts Fried . | . . . Impact Corruptions . | . . . Robots Melted . | . . . Combat Hostiles . | . . . Parts Melted 2 | . 2 . Heat Transferred 2395 | 333 1877 185 Parts Sabotaged . | . . . Parts Stolen . | . . . Parts Stripped . | . . . Power Chain Reactions . | . . . Alert | -11 -10 -10 ------- Run | Yrd Mat Min Peak Influence 229 | 45 229 183 Initial 47 | . 29 47 Average 92 | 18 111 80 Maximum Alert Level 1 | . 1 . Low Security (%) 98 | 100 98 100 Level 1 1 | . 1 . Level 2 . | . . . Level 3 . | . . . Level 4 . | . . . Level 5 . | . . . High Security . | . . . Max Security . | . . . Squads Dispatched 3 | . 3 . Investigation 2 | . 2 . Extermination . | . . . Reinforcement 1 | . 1 . Assault . | . . . Garrison . | . . . Intercept . | . . . Searches Triggered . | . . . Construction Impeded . | . . . Haulers Reinforced . | . . . Active Scanning Responses . | . . . Cargo Convoy Interrupts . | . . . Stealth | -11 -10 -10 --------- Run | Yrd Mat Min Distress Signals . | . . . Communications Jammed . | . . . Distress Signals . | . . . Times Spotted 30 | . 23 7 Peak Tracking Total 3 | . 3 2 Tactical Retreats 1 | . 1 . Traps | -11 -10 -10 ------- Run | Yrd Mat Min Traps Triggered 3 | . 3 . Indirectly . | . . . Trap Hack Attempts . | . . . Triggered . | . . . Disarmed . | . . . Reprogrammed . | . . . Reused . | . . . Traps Extracted . | . . . Installed 1 | . . 1 Triggered . | . . . Most Traps Carried 3 | . . 3 Machines | -11 -10 -10 ---------- Run | Yrd Mat Min Machines Disabled 2 | . 2 . Max in Single Turn 1 | . 1 . Machines Repaired . | . . . Machines Dismantled . | . . . Machines Sabotaged . | . . . Overloaded Fab Kills . | . . . Hacking | -11 -10 -10 --------- Run | Yrd Mat Min Machines Accessed 9 | . 8 1 Terminals 7 | . 6 1 Fabricators . | . . . Repair Stations 1 | . 1 . Recycling Units 1 | . 1 . Scanalyzers . | . . . Garrison Access . | . . . Total Hacks 34 | . 32 2 Successful 22 | . 21 1 Failed 12 | . 11 1 Catastrophic . | . . . Database Lockouts . | . . . Manual 26 | . 24 2 Terminals 30 | . 28 2 Fabricators . | . . . Repair Stations 3 | . 3 . Recycling Units 1 | . 1 . Scanalyzers . | . . . Garrison Access . | . . . Terminal Hacks 8 | . 7 1 Robot Schematic 2 | . 2 . Robot Analysis 2 | . 2 . Prototype ID Bank 2 | . 1 1 Locate Traps 1 | . 1 . Registered Prototypes 1 | . 1 . Fabricator Hacks . | . . . Repair Station Hacks 3 | . 3 . Scan Component 2 | . 2 . Repair 1 | . 1 . Recycling Unit Hacks . | . . . Scanalyzer . | . . . Garrison Access Hacks . | . . . Unauthorized Hacks 11 | . 11 . Terminals 10 | . 10 . Botnet 4 | . 4 . Skim 6 | . 6 . Fabricators . | . . . Repair Stations . | . . . Recycling Units 1 | . 1 . Tunnel 1 | . 1 . Scanalyzers . | . . . Garrison Access . | . . . Data Cores Recovered 1 | . 1 . Used . | . . . Hacking Detections 8 | . 7 1 Full Trace Events 1 | . 1 . Feedback Events . | . . . Feedback Blocked . | . . . Robot Schematics Acquired 2 | . 2 . Robots Built . | . . . Authchips . | . . . Time . | . . . Total Robot Build Rating . | . . . Part Schematics Acquired . | . . . Parts Built . | . . . Authchips . | . . . Time . | . . . Total Part Build Rating . | . . . Parts Repaired 1 | . 1 . Time 26 | . 26 . Parts Recycled . | . . . Recycled Matter . | . . . Retrieved Matter . | . . . Retrieved Components . | . . . Parts Scanalyzed . | . . . Part Schematics Acquired . | . . . Parts Damaged . | . . . Bothacking | -11 -10 -10 ------------ Run | Yrd Mat Min Used RIF Installer . | . . . Robots Hacked . | . . . Non-combat . | . . . Combat . | . . . Robot Hacks Applied . | . . . Relay Couplers Released . | . . . Fabnet Peak Effective % . | . . . Robots Rewired . | . . . Allies Hacked . | . . . Hacks Repelled . | . . . Allies | -11 -10 -10 -------- Run | Yrd Mat Min Total Allies 1 | . . 1 Largest Group 1 | . . 1 Highest-Rated Group 31 | . . 31 Highest-Rated Ally 31 | . . 31 Total Orders . | . . . Ally Attacks 2 | . . 2 Total Damage 20 | . . 20 Kills 1 | . . 1 Allies Corrupted . | . . . Allies Melted . | . . . Intel | -11 -10 -10 ------- Run | Yrd Mat Min Robot Analysis Total 2 | . 2 . Derelict Logs Recovered . | . . . Drone Launches . | . . . Drone Recoveries . | . . . Exploration | -11 -10 -10 ------------- Run | Yrd Mat Min Turns Passed 2402 | 236 1419 747 Spaces Moved 1143 | 111 722 310 Core 2 | 2 . . Treads 871 | 109 452 310 Legs . | . . . Wheels 270 | . 270 . Hover . | . . . Flight . | . . . Fastest Speed 50 | 50 95 160 Average Speed 165 | 158 140 226 Slowest Speed 240 | 160 160 240 Overloaded Moves . | . . . Propulsion Burnouts . | . . . Robots Hopped . | . . . Cave-ins Triggered . | . . . Exploration Rate (%) 53 | 5 96 60 Regions Visited 2 Branch Regions 1 Pre-discovered Areas 1 | . 1 . Known Exits Taken . | . . . Unknown Exits Taken 2 | 1 1 . Scrap Searched 1 | . . 1 Spaces Dug . | . . . Terrain Destroyed 9 | . 9 . Melee . | . . . Projectile . | . . . AOE 9 | . 9 . Terrain Rammed . | . . . Walls Destroyed . | . . . Machines Disabled . | . . . Actions | -11 -10 -10 --------- Run | Yrd Mat Min Total 1411 | 138 941 332 Wait 72 | 2 70 . Move 1141 | 110 721 310 Hop . | . . . Pick Up 25 | 4 17 4 Fast Attach 16 | 6 10 . Attach 2 | . 2 . Detach . | . . . Swap 14 | . 11 3 Drop 15 | . 13 2 Fire 125 | 16 97 12 Melee . | . . . Ram . | . . . Kick . | . . . Crush . | . . . Escape Stasis . | . . . Rewire . | . . . Trap 1 | . . 1 Miscellaneous . | . . . Route ------- -11/Scrapyard -10/Materials (discovered 4 exits: [*Mat x3] / *Min) -10/Mines History --------- Turn | Location | Event 25 | -11/Scrapyard | Discovered new exit (range 15) 237 | -11/Scrapyard | Entered Materials 309 | -10/Materials | Build established: Mutant 429 | -10/Materials | Repaired Lgt. Treads 487 | -10/Materials | Core integrity fell below 50% 732 | -10/Materials | Discovered new exit (range 16) 1080 | -10/Materials | Discovered new exit (range 8) 1137 | -10/Materials | Discovered new exit (range 9) 1194 | -10/Materials | Build established: Scavenger-Mutant 1379 | -10/Materials | Discovered new exit (range 15) 1388 | -10/Materials | Core integrity fell below 20% 1634 | -10/Materials | Build established: Mutant 1656 | -10/Materials | Entered Mines 1665 | -10/Mines | Escorted by a lone wolf Derelict 1666 | -10/Mines | Met a Derelict bent on vengeance 1759 | -10/Mines | Found a hidden stash of uninstalled traps 2403 | -10/Mines | Destroyed by G-47 Trooper with Particle Gun Last Messages --------------- 01939_ G-47 Trooper destroyed. 01942_ Acquired 25 matter. 01947_ Acquired Particle Gun. 02015_ K-01 Serf cleans the Laser Drill. 02018_ K-01 Serf collects debris. 02026_ K-01 Serf cleans the Laser Drill. 02031_ K-01 Serf collects debris. 02142_ Connecting with Terminal... 02142_ Current location identified: Mines >>Prototypes Downloading prototype IDs... Adv. Beam Cannon Imp. Medium Laser 02253_ Searching scrap... 02253_ Found Targeting Computer. 02253_ Found Com. Wheel. 02253_ Found 45 Matter. 02253_ Found 54 Matter. 02389_ Dropped Heavy Explosive Trap. 02390_ Installed Heavy Explosive Trap. Map ----- +----------------------------------------------------+ | ??????????????????????????????????????## | | ???????????????????????????????????????###### ## | | ????????????????????????????????????????????# ##? | | ????????????????????????????????????????????# #?? | | ????????????????????????????????????????????# #?? | | ????????????????????????????????????????????# #?? | | ????????????????????????????????????????????# #?? | | ????????????????????????????????????????????# #?? | | ????????????????????????????????????????????# #?? | | ???????????????????????????????????????????## ##? | | ??????????????????????????????????????????## ## | | ????????????????????????????????# ######### # | | ???????????????????????????????# | | ???????????????????????????????# | | ???????????????????????????????# ############ | | ??????????????????????????###??# #### ????### # | | ?????????????????????????? ??# #### ## | | ??????????????????????????# #?# #?# | | ??????????????????????????# #?# #?# | | ??????????????????????????# ### ### ########## | | ??????????????????????????# ## ##? #?????????# | | ??????????????????????????# ### #?????????# | | ??????##??????????????????# #?????????# | | ??????? ??????????????## ## #?????????# | | ???????????# ########### ## #??????#### | | ????????????# g ^ @ """ # ######## | | ????????????## g """ | | ?????????????## ######### """ | | ??????????????# ????????# ##### | | ??????????????# ????????# ### #???## | | ??????????????# ????????# ##?## ##????## | | ?????????????? ?????????## ##???## ##??????## | | ?????????????# #??????????####?????####????????# | | ?????????????###????????????????????????????????## | | ?????????????????????????????????????????????????# | | ?????????????????????????????????????????????????? | | ?????????????????????????????????????????????????? | | | | | | | | | | | | | | | | | | | | | | | | | | | +----------------------------------------------------+ Best States ------------- Heat Dissipation 39 Energy Generation 18 Energy Capacity 250 Matter Stores 300 Matter Capacity 300 Sight Range 16 Terrain Scan Density 10 Evasion (%) 41 Recoil Reduction 2 Offensive Hacking 10 Item Schematics ----------------- None Robot Schematics ------------------ M-13 Machinist | -10/Materials | Hacked O-16 Technician | -10/Materials | Hacked Fabricated ------------ Nothing Alien Tech Used ----------------- None Achievements -------------- None Challenges ------------ None Game ------ Seed ScrapoidSuspensionShield Manual? 0 Play Time 00:18:10 Cumulative 179.3 hours Start 2025.03.06 @ 21:37:44 End 2025.03.06 @ 21:53:13 Sessions 1 Manual Loads 0 Difficulty Rogue Special Mode None Game No. 89 Rogue 89 Adventurer 0 Explorer 0 Win Type - Total 0 Types 0/0/0/0/0/0/0/0/0 Lore% 53 Gallery% 71 Achievement% 57 Wizard Run 0 Options --------- Layout 0 ASCII 0 Keyboard 0 Movement Mouse Keybinds 0 Fullscreen 1 Font 24/Smallcaps Map View 183x50 Zoom Use 0% Tactical HUD 1 Map Filters NONE Filters NONE Steam 0 RUN: 095a4fc1-4657-4ef2-9bcc-f45d99e43eb0